Service Area,Expense Type,Date,Transaction Number,Amount,Supplier
Human Resources,Train And Conference,2010-04-01,5000070510,620.0,Personnel Health And Safety Consult
Human Resources,Recruitment Advertis,2010-04-08,5000071212,2226.91,Southwest One Ltd
Human Resources,Recruitment Advertis,2010-04-08,5000071213,3503.7,Southwest One Ltd
Human Resources,Professional Service,2010-04-09,5000071233,1400.0,Bevan Young Associates
Human Resources,Train And Conference,2010-04-12,5000071451,685.0,Redacted Personal Data
Human Resources,Recruitment Advertis,2010-04-12,5000071662,-3000.0,Equals
Human Resources,Pay To Pvte Contract,2010-04-12,5000071663,3000.0,Equals
Human Resources,Recruitment Advertis,2010-04-13,5000071703,-3262.0,Sedgley Belbin Wright Ltd
Human Resources,Consultants Fees,2010-04-14,5000072143,1290.0,Elt Solutions Ltd
Human Resources,Recruitment Advertis,2010-04-19,5000072778,7962.27,Southwest One Ltd
Human Resources,Operational Equipmen,2010-04-22,5000073927,3000.0,Isle Of Wight College
Human Resources,Printing Costs,2010-04-23,5000074174,1875.0,Personnel Health And Safety Consult
Human Resources,Agency Staff,2010-04-23,5000074203,1935.0,Elt Solutions Ltd
Human Resources,Recruitment Advertis,2010-04-26,5105681447,2604.08,Criminal Records Bureau
Human Resources,Agency Staff,2010-04-26,5000074649,4029.3,Pertemps Recruitment Partnershp Ltd
Human Resources,Agency Staff,2010-04-28,5000075094,-4029.3,Pertemps Recruitment Partnershp Ltd
Human Resources,Med Fees & Staff Wel,2010-04-29,5000075455,2775.61,Iw Nhs Primary Care Trust
Human Resources,Train And Conference,2010-05-05,5000076204,620.0,Personnel Health And Safety Consult
Human Resources,Train And Conference,2010-05-10,5400000808,-620.0,Personnel Health And Safety Consult
Human Resources,Med Fees & Staff Wel,2010-05-11,5000077381,-2909.23,Isle Of Wight Nhsprimary Care Trust
Human Resources,Med Fees & Staff Wel,2010-05-11,5000077447,-2217.6,Isle Of Wight Nhsprimary Care Trust
Human Resources,Agency Staff,2010-05-11,5000077299,700.0,Capita Resourcing Ltd
Human Resources,Agency Staff,2010-05-11,5000077299,5813.0,Capita Resourcing Ltd
Human Resources,Train And Conference,2010-05-11,5000077588,815.0,Personnel Health And Safety Consult
Human Resources,Train And Conference,2010-05-12,5000077747,620.0,Personnel Health And Safety Consult
Human Resources,Train And Conference,2010-05-12,5000077744,620.0,Personnel Health And Safety Consult
Human Resources,Pay To Pvte Contract,2010-05-17,5000078498,700.0,Single Equality Training&Consultanc
Human Resources,Pay To Pvte Contract,2010-05-17,5000078498,700.0,Single Equality Training&Consultanc
Human Resources,Interview & Recruit,2010-05-19,5105686818,1185.41,Criminal Records Bureau
Human Resources,Recruitment Advertis,2010-05-20,5000079445,5089.79,Southwest One Ltd
Human Resources,Professional Service,2010-05-21,5000079719,3360.0,Isle Of Wight College
Human Resources,Med Fees & Staff Wel,2010-05-21,5000079540,2674.35,Iw Nhs Primary Care Trust
Human Resources,Agency Staff,2010-05-28,5000081004,1580.0,Networkers Msb
Human Resources,Agency Staff,2010-05-28,5000081003,987.5,Networkers Msb
Human Resources,Train And Conference,2010-05-28,5000080993,620.0,Personnel Health And Safety Consult
Human Resources,Pay To Pvte Contract,2010-06-01,5000081399,998.0,Emap Ltd
Human Resources,Train And Conference,2010-06-04,5000082139,1860.0,Personnel Health And Safety Consult
Human Resources,Train And Conference,2010-06-07,5000082223,620.0,Personnel Health And Safety Consult
Human Resources,Agency Staff,2010-06-09,5000082917,2765.0,Networkers Msb
Human Resources,Train And Conference,2010-06-09,5000082932,620.0,Personnel Health And Safety Consult
Human Resources,Agency Staff,2010-06-09,5000082919,4581.5,Capita Resourcing Ltd
Human Resources,Agency Staff,2010-06-09,5000082919,550.0,Capita Resourcing Ltd
Human Resources,Recruitment Advertis,2010-06-09,5000082903,1290.0,Sedgley Belbin Wright Ltd
Human Resources,Recruitment Advertis,2010-06-09,5000082903,1155.0,Sedgley Belbin Wright Ltd
Human Resources,Train And Conference,2010-06-15,5000084460,2480.0,Personnel Health And Safety Consult
Human Resources,Train And Conference,2010-06-15,5000084294,620.0,Personnel Health And Safety Consult
Human Resources,Train And Conference,2010-06-15,5000084288,620.0,Personnel Health And Safety Consult
Human Resources,Agency Staff,2010-06-16,5000084663,3160.0,Networkers Msb
Human Resources,Med Fees & Staff Wel,2010-06-17,5000084998,-1419.81,Isle Of Wight Nhsprimary Care Trust
Human Resources,Med Fees & Staff Wel,2010-06-18,5000085256,1866.06,Iw Nhs Primary Care Trust
Human Resources,Agency Staff,2010-06-28,5000087102,2567.5,Networkers Msb
Human Resources,Train And Conference,2010-06-28,5000086948,1240.0,Personnel Health And Safety Consult
Human Resources,Train And Conference,2010-06-29,5000087179,620.0,Personnel Health And Safety Consult
Human Resources,Train And Conference,2010-07-02,5000087946,620.0,Personnel Health And Safety Consult
Human Resources,Agency Staff,2010-07-05,5000088135,800.0,Capita Resourcing Ltd
Human Resources,Agency Staff,2010-07-05,5000088135,6664.0,Capita Resourcing Ltd
Human Resources,Recruitment Advertis,2010-07-05,5000088337,1065.9,Southwest One Ltd
Human Resources,Recruitment Advertis,2010-07-05,5000088341,2975.64,Southwest One Ltd
Human Resources,Interview & Recruit,2010-07-06,5105697914,754.74,Criminal Records Bureau
Human Resources,Train And Conference,2010-07-09,5000089192,2050.0,Alistair Bromhead Limited
Human Resources,Train And Conference,2010-07-15,5000090436,620.0,Personnel Health And Safety Consult
Human Resources,Train And Conference,2010-07-15,5000090437,620.0,Personnel Health And Safety Consult
Human Resources,Train And Conference,2010-07-15,5000090432,1860.0,Personnel Health And Safety Consult
Human Resources,Train And Conference,2010-07-21,5000091545,1240.0,Personnel Health And Safety Consult
Human Resources,Train And Conference,2010-07-21,5000091654,720.0,Alistair Bromhead Limited
Human Resources,Agency Staff,2010-07-22,5000091868,3160.0,Networkers Msb
Human Resources,Med Fees & Staff Wel,2010-07-27,5000092728,2501.01,Iw Nhs Primary Care Trust
Human Resources,Med Fees & Staff Wel,2010-08-09,5000095052,4242.67,Iw Nhs Primary Care Trust
Human Resources,Train And Conference,2010-08-10,5000095377,620.0,Personnel Health And Safety Consult
Human Resources,Train And Conference,2010-08-10,5000095299,1240.0,Personnel Health And Safety Consult
Human Resources,Agency Staff,2010-08-16,5000096075,900.0,Capita Resourcing Ltd
Human Resources,Agency Staff,2010-08-16,5000096075,8671.85,Capita Resourcing Ltd
Human Resources,Consultants Fees,2010-08-16,5000096189,645.0,Elt Solutions Ltd
Human Resources,Professional Service,2010-08-24,5000097652,900.0,Bevan Young Associates
Human Resources,Consultants Fees,2010-08-27,5000098151,645.0,Elt Solutions Ltd
Human Resources,Agency Staff,2010-09-01,5000098934,891.4,Capita Resourcing Ltd
Human Resources,Agency Staff,2010-09-01,5000098932,-900.0,Capita Resourcing Ltd
Human Resources,Agency Staff,2010-09-03,5000099375,841.5,Capita Resourcing Ltd
Human Resources,Agency Staff,2010-09-03,5000099375,6664.0,Capita Resourcing Ltd
Human Resources,Consultants Fees,2010-09-08,5000100305,645.0,Elt Solutions Ltd
Human Resources,Agency Staff,2010-09-13,5000100994,645.0,Elt Solutions Ltd
Human Resources,Interview & Recruit,2010-09-16,5105614459,1849.85,Criminal Records Bureau
Human Resources,Agency Staff,2010-09-17,5000101757,6320.0,Networkers Msb
Human Resources,Agency Staff,2010-09-17,5000101780,4740.0,Networkers Msb
Human Resources,Agency Staff,2010-09-17,5000101779,1580.0,Networkers Msb
Human Resources,Agency Staff,2010-09-21,5000102471,6320.0,Networkers Msb
Human Resources,Computer Purch & Ren,2010-09-29,5000104029,1545.37,Probrand Limited
Human Resources,Med Fees & Staff Wel,2010-09-29,5000103938,1215.08,Iw Nhs Primary Care Trust
Human Resources,Consultants Fees,2010-09-30,5000104161,645.0,Elt Solutions Ltd
Human Resources,Consultants Fees,2010-09-30,5000104161,645.0,Elt Solutions Ltd
Human Resources,Interview & Recruit,2010-10-05,5105618132,717.42,Criminal Records Bureau
Human Resources,Train And Conference,2010-10-08,5000105542,1240.0,Personnel Health And Safety Consult
Human Resources,Train And Conference,2010-10-08,5000105534,1860.0,Personnel Health And Safety Consult
Human Resources,Consultants Fees,2010-10-11,5000106004,645.0,Elt Solutions Ltd
Human Resources,Agency Staff,2010-10-12,5000106106,4789.75,Capita Resourcing Ltd
Human Resources,Agency Staff,2010-10-12,5000106106,575.0,Capita Resourcing Ltd
Human Resources,Train And Conference,2010-10-19,5000107816,1240.0,Personnel Health And Safety Consult
Human Resources,Train And Conference,2010-10-19,5000107819,620.0,Personnel Health And Safety Consult
Human Resources,Agency Staff,2010-10-25,5000108746,3160.0,Networkers Msb
Human Resources,Train And Conference,2010-10-28,5000109706,620.0,Personnel Health And Safety Consult
Human Resources,Train And Conference,2010-10-28,5000109696,620.0,Personnel Health And Safety Consult
Human Resources,Train And Conference,2010-10-28,5000109707,1653.33,Personnel Health And Safety Consult
Human Resources,Med Fees & Staff Wel,2010-10-28,5000109605,1989.75,Iw Nhs Primary Care Trust
Human Resources,Train And Conference,2010-10-29,5000109768,620.0,Personnel Health And Safety Consult
Human Resources,Professional Service,2010-11-01,5000110127,900.0,Bevan Young Associates
Human Resources,Train And Conference,2010-11-01,5000109984,620.0,Personnel Health And Safety Consult
Human Resources,General Materials,2010-11-03,5000110588,2520.0,University Of Portsmouth
Human Resources,Med Fees & Staff Wel,2010-11-11,5000111859,1787.88,Iw Nhs Primary Care Trust
Human Resources,Agency Staff,2010-11-11,5000112087,825.0,Capita Resourcing Ltd
Human Resources,Agency Staff,2010-11-11,5000112086,6872.25,Capita Resourcing Ltd
Human Resources,Agency Staff,2010-11-15,5000112540,3160.0,Networkers Msb
Human Resources,Interview & Recruit,2010-11-16,5105627421,1835.14,Criminal Records Bureau
Human Resources,Train And Conference,2010-11-16,5000112720,620.0,Personnel Health And Safety Consult
Human Resources,Operational Equipmen,2010-11-19,5000113357,530.0,Dods Parlamentary Comm Ltd
Human Resources,Agency Staff,2010-11-30,5000115147,4740.0,Networkers Msb
Human Resources,Train And Conference,2010-11-30,5000114892,620.0,Personnel Health And Safety Consult
Human Resources,Train And Conference,2010-12-08,5000116066,620.0,Personnel Health And Safety Consult
Human Resources,Train And Conference,2010-12-08,5000116067,1860.0,Personnel Health And Safety Consult
Human Resources,Consultants Fees,2010-12-09,5000116288,700.0,Bevan Young Associates
Human Resources,Consultants Fees,2010-12-09,5000116288,700.0,Bevan Young Associates
Human Resources,Agency Staff,2010-12-14,5000117115,6664.0,Capita Resourcing Ltd
Human Resources,Agency Staff,2010-12-14,5000117116,800.0,Capita Resourcing Ltd
Human Resources,Interview & Recruit,2010-12-14,5105633198,1481.48,Criminal Records Bureau
Human Resources,General Materials,2010-12-15,5000117507,2260.0,Southampton Solent University
Human Resources,Med Fees & Staff Wel,2010-12-17,5000117965,2363.03,Iw Nhs Primary Care Trust
Human Resources,Interview & Recruit,2010-12-23,5105635605,1513.51,Criminal Records Bureau
Human Resources,Professional Service,2011-01-04,5000119307,900.0,Bevan Young Associates
Human Resources,Agency Staff,2011-01-04,5000119410,-6320.0,Networkers Msb
Human Resources,Agency Staff,2011-01-06,5000119935,600.0,Capita Resourcing Ltd
Human Resources,Agency Staff,2011-01-06,5000119942,4998.0,Capita Resourcing Ltd
Human Resources,Train And Conference,2011-01-07,5000120360,1240.0,Personnel Health And Safety Consult
Human Resources,Recruitment Advertis,2011-01-17,5105639126,1578.93,Criminal Records Bureau
Human Resources,Train And Conference,2011-01-18,5000122053,620.0,Personnel Health And Safety Consult
Human Resources,Med Fees & Staff Wel,2011-01-27,5000123535,1687.13,Iw Nhs Primary Care Trust
Human Resources,Train And Conference,2011-02-04,5000125251,1240.0,Personnel Health And Safety Consult
Human Resources,Consultants Fees,2011-02-07,5000125546,700.0,Bevan Young Associates
Human Resources,Consultants Fees,2011-02-07,5000125566,700.0,Bevan Young Associates
Human Resources,General Materials,2011-02-07,5105643551,750.32,Southampton Solent University
Human Resources,Pay To Pvte Contract,2011-02-08,5000125723,-3000.0,Equals
Human Resources,Professional Service,2011-02-08,5000125727,700.0,Bevan Young Associates
Human Resources,Professional Service,2011-02-08,5000125727,700.0,Bevan Young Associates
Human Resources,Professional Service,2011-02-09,5000125919,2500.0,Capita Resourcing Ltd
Human Resources,Train And Conference,2011-02-10,5000126444,1860.0,Personnel Health And Safety Consult
Human Resources,Recruitment Advertis,2011-02-22,5105647051,1188.92,Criminal Records Bureau
Human Resources,Agency Staff,2011-02-23,5000128550,6765.0,Capita Resourcing Ltd
Human Resources,Agency Staff,2011-02-23,5000128550,825.0,Capita Resourcing Ltd
Human Resources,Med Fees & Staff Wel,2011-02-28,5000129332,1639.28,Iw Nhs Primary Care Trust
Human Resources,Train And Conference,2011-03-04,5105650683,567.42,Personnel Health And Safety Consult
Human Resources,Agency Staff,2011-03-07,5000130700,800.0,Capita Resourcing Ltd
Human Resources,Agency Staff,2011-03-07,5000130700,6560.0,Capita Resourcing Ltd
Human Resources,Comp Software Licenc,2011-03-07,5000130698,4618.66,Xpert Hr
Human Resources,Pay To Pvte Contract,2011-03-08,5000130965,1400.0,Single Equality Training&Consultanc
Human Resources,Train And Conference,2011-03-08,5000130971,700.0,Single Equality Training&Consultanc
Human Resources,Train And Conference,2011-03-08,5000130967,700.0,Single Equality Training&Consultanc
Human Resources,Train And Conference,2011-03-08,5000130805,675.0,Single Equality Training&Consultanc
Human Resources,Train And Conference,2011-03-08,5000130803,675.0,Single Equality Training&Consultanc
Human Resources,Train And Conference,2011-03-08,5000130968,-675.0,Single Equality Training&Consultanc
Human Resources,Train And Conference,2011-03-08,5000130966,-675.0,Single Equality Training&Consultanc
Human Resources,Med Fees & Staff Wel,2011-03-10,5000131378,1294.75,Iw Nhs Primary Care Trust
Human Resources,Train And Conference,2011-03-16,5000132101,620.0,Personnel Health And Safety Consult
Human Resources,Agency Staff,2011-03-16,5000132117,5125.0,Capita Resourcing Ltd
Human Resources,Agency Staff,2011-03-16,5000132117,625.0,Capita Resourcing Ltd
Human Resources,Agency Staff,2011-03-16,5000132116,-825.0,Capita Resourcing Ltd
Human Resources,Agency Staff,2011-03-16,5000132116,-6765.0,Capita Resourcing Ltd
Human Resources,Train And Conference,2011-03-28,5000134097,620.0,Personnel Health And Safety Consult
Human Resources,Train And Conference,2011-03-28,5000134090,1240.0,Personnel Health And Safety Consult
Human Resources,Train And Conference,2011-03-29,5105655174,4002.86,Sypol Ltd
Human Resources,Comp Software Licenc,2011-03-29,5000134323,2500.0,Genesys Human Resource Solutions
Human Resources,Recruitment Advertis,2011-04-05,5000135693,1978.35,Southwest One Ltd
Human Resources,Recruitment Advertis,2011-04-05,5000135695,7136.3,Southwest One Ltd
Human Resources,Recruitment Advertis,2011-04-07,5105656963,1584.68,Criminal Records Bureau
Human Resources,Med Fees & Staff Wel,2011-04-07,5000136136,1433.88,Iw Nhs Primary Care Trust
Human Resources,Recruitment Advertis,2011-04-07,5000136134,3084.71,Southwest One Ltd
Human Resources,Consultants Fees,2011-04-08,5000136286,700.0,Bevan Young Associates
Human Resources,Consultants Fees,2011-04-08,5000136289,700.0,Bevan Young Associates
Human Resources,Pay To Pvte Contract,2011-04-08,5000136283,3000.0,Equals
Human Resources,Agency Staff,2011-04-12,5000136775,800.0,Capita Resourcing Ltd
Human Resources,Agency Staff,2011-04-12,5000136775,6560.0,Capita Resourcing Ltd
Human Resources,Med Fees & Staff Wel,2011-04-20,5000138286,-1433.88,Iw Nhs Primary Care Trust
Human Resources,Recruitment Advertis,2011-04-20,5000138297,-3084.71,Southwest One Ltd
Human Resources,Agency Staff,2011-05-10,5000140490,4290.0,Capita Resourcing Ltd
Human Resources,Agency Staff,2011-05-10,5000140491,1560.0,Capita Resourcing Ltd
Human Resources,Agency Staff,2011-05-10,5000140492,550.0,Capita Resourcing Ltd
Human Resources,Pay To Pvte Contract,2011-05-11,5000140724,1000.0,Equals
Human Resources,Recruitment Advertis,2011-05-16,5000141466,1548.0,Criminal Records Bureau
Human Resources,Recruitment Advertis,2011-05-20,5105664792,644.57,Criminal Records Bureau
Human Resources,Agency Staff,2011-05-25,5000142984,1666.0,Capita Resourcing Ltd
Human Resources,Train And Conference,2011-06-06,5000144284,1750.0,High Speed Training Limited
Human Resources,Agency Staff,2011-06-08,5000144613,4680.0,Capita Resourcing Ltd
Human Resources,Agency Staff,2011-06-08,5000144614,975.0,Capita Resourcing Ltd
Human Resources,Agency Staff,2011-06-08,5000144616,725.0,Capita Resourcing Ltd
Human Resources,Agency Staff,2011-06-09,5000144796,3925.0,Capita Resourcing Ltd
Human Resources,Agency Staff,2011-06-14,5000145663,-1560.0,Capita Resourcing Ltd
Human Resources,Train And Conference,2011-06-15,5000145823,768.0,Redacted Personal Data
Human Resources,Train And Conference,2011-06-15,5000145823,800.0,Redacted Personal Data
Human Resources,Train And Conference,2011-06-15,5000145822,1600.0,Redacted Personal Data
Human Resources,Train And Conference,2011-06-22,5000146953,-768.0,Redacted Personal Data
Human Resources,Train And Conference,2011-06-22,5000146953,-800.0,Redacted Personal Data
Human Resources,Train And Conference,2011-06-22,5000146954,-1600.0,Redacted Personal Data
Human Resources,Agency Staff,2011-06-28,5000147640,-1618.39,Capita Resourcing Ltd
Human Resources,Agency Staff,2011-06-28,5000147630,-1602.67,Capita Resourcing Ltd
Human Resources,Agency Staff,2011-06-28,5000147564,-1560.0,Capita Resourcing Ltd
Human Resources,Professional Service,2011-06-28,5000147629,750.0,Capita Resourcing Ltd
Human Resources,Agency Staff,2011-06-28,5000147604,1640.0,Capita Resourcing Ltd
Human Resources,Agency Staff,2011-06-28,5000147638,1640.0,Capita Resourcing Ltd
Human Resources,Agency Staff,2011-06-28,5000147631,1640.0,Capita Resourcing Ltd
Human Resources,Agency Staff,2011-06-28,5000147566,1640.0,Capita Resourcing Ltd
Human Resources,Agency Staff,2011-06-30,5400001170,-6068.94,Capita Resourcing Ltd
Human Resources,Agency Staff,2011-07-04,5000148139,-8095.0,Capita Resourcing Ltd
Human Resources,Agency Staff,2011-07-04,5000148147,1170.0,Capita Resourcing Ltd
Human Resources,Agency Staff,2011-07-04,5000148151,1365.0,Capita Resourcing Ltd
Human Resources,Agency Staff,2011-07-04,5000148140,1640.0,Capita Resourcing Ltd
Human Resources,Agency Staff,2011-07-04,5000148148,1755.0,Capita Resourcing Ltd
Human Resources,Agency Staff,2011-07-04,5000148138,8095.0,Capita Resourcing Ltd
Human Resources,Comp Software Licenc,2011-07-08,5000149085,750.0,The Multimedia Design Studio Ltd
Human Resources,Agency Staff,2011-07-14,5000150190,4680.0,Capita Resourcing Ltd
Human Resources,Agency Staff,2011-07-14,5000150189,1560.0,Capita Resourcing Ltd
Human Resources,Agency Staff,2011-07-14,5000150192,800.0,Capita Resourcing Ltd
Human Resources,Agency Staff,2011-07-14,5000150191,-3925.0,Capita Resourcing Ltd
Human Resources,Agency Staff,2011-08-15,5000154041,1000.0,Capita Resourcing Ltd
Human Resources,Agency Staff,2011-08-15,5000154040,7800.0,Capita Resourcing Ltd
Human Resources,Pay To Pvte Contract,2011-09-05,5000156863,700.0,Single Equality Training
Human Resources,Agency Staff,2011-09-06,5000156996,5070.0,Capita Resourcing Ltd
Human Resources,Agency Staff,2011-09-06,5000156997,650.0,Capita Resourcing Ltd
Human Resources,Professional Service,2011-09-09,5000158044,1000.0,Capita Resourcing Ltd
Human Resources,Training,2011-10-03,5000160979,758.7,Iw Nhs Primary Care Trust
Human Resources,Training,2011-10-03,5000160979,755.44,Iw Nhs Primary Care Trust
Human Resources,Training,2011-10-03,5000160979,4429.28,Iw Nhs Primary Care Trust
Human Resources,Training,2011-10-03,5000161014,600.0,Iw Nhs Primary Care Trust
Human Resources,Training,2011-10-03,5000161014,600.0,Iw Nhs Primary Care Trust
Human Resources,Training,2011-10-03,5000161014,600.0,Iw Nhs Primary Care Trust
Human Resources,Training,2011-10-03,5000161014,600.0,Iw Nhs Primary Care Trust
Human Resources,Training,2011-10-03,5000161014,600.0,Iw Nhs Primary Care Trust
Human Resources,Training,2011-10-03,5000161014,1800.0,Iw Nhs Primary Care Trust
Human Resources,Training,2011-10-05,5000161338,133209.0,Iw Nhs Primary Care Trust
Human Resources,Training,2011-10-05,5000161338,77701.0,Iw Nhs Primary Care Trust
Human Resources,Training,2011-10-12,5000162956,10187.81,Iw Nhs Primary Care Trust
Human Resources,Operational Equipmen,2011-10-13,5000163108,1500.0,Sypol Ltd
Human Resources,Agency Staff,2011-10-25,5000163614,-1000.0,Capita Resourcing Ltd
Human Resources,Agency Staff,2011-10-25,5000163615,750.0,Capita Resourcing Ltd
Human Resources,Operational Equipmen,2011-11-01,5000164650,1700.0,Specsavers Optical Superstores
Human Resources,Agency Staff,2011-11-18,5000167832,5850.0,Capita Resourcing Ltd
Human Resources,Agency Staff,2011-11-25,5000168821,5850.0,Capita Resourcing Ltd
Human Resources,Agency Staff,2011-11-25,5000168821,750.0,Capita Resourcing Ltd
Human Resources,Agency Staff,2011-12-06,5000170060,700.0,Capita Resourcing Ltd
Human Resources,Agency Staff,2011-12-06,5000170059,5460.0,Capita Resourcing Ltd
Human Resources,Agency Staff,2012-01-09,5000174641,-4911.5,Capita Resourcing Ltd
Human Resources,Agency Staff,2012-01-09,5000174637,-750.0,Capita Resourcing Ltd
Human Resources,Agency Staff,2012-01-12,5000175491,3120.0,Capita Resourcing Ltd
Human Resources,Professional Services,2012-01-16,5000175715,-500.0,Lizzie Hutchinson Hr Consult Ltd
Human Resources,Payment To Private Contractors,2012-01-20,5000176543,5000.0,Winchester City Council
Human Resources,Computer Software Licencing,2012-01-24,5000176838,4000.0,Sypol Ltd
Human Resources,Training,2012-01-24,5000176893,2450.0,Southampton Solent University
Human Resources,Training,2012-01-31,5000177692,1750.0,High Speed Training Limited
Human Resources,Sundry Office Expenses,2012-02-03,5000178343,790.0,Phoenix Hsc Uk Ltd
Human Resources,Agency Staff,2012-02-22,5000181640,750.0,Capita Resourcing Ltd
Human Resources,Agency Staff,2012-02-22,5000181652,5850.0,Capita Resourcing Ltd
Human Resources,Sundry Office Expenses,2012-03-05,5000183161,1198.0,Jec Training Limited
Human Resources,Training,2012-03-06,5000183325,1800.0,Iw Nhs Primary Care Trust
Human Resources,Training,2012-03-06,5000183325,600.0,Iw Nhs Primary Care Trust
Human Resources,Computer Software Licencing,2012-03-12,5000184745,2500.0,Genesys Human Resource Solutions
Human Resources,Agency Staff,2012-03-20,5000186223,5850.0,Capita Resourcing Ltd
Human Resources,Agency Staff,2012-03-21,5000186500,750.0,Capita Resourcing Ltd
Human Resources,Training,2012-03-29,5000187978,1200.0,Iw Nhs Primary Care Trust
Human Resources,Agency Staff,2012-03-30,5000188686,617.16,Hays Specialist Recruitment Ltd
Human Resources,Agency Staff,2012-03-30,5000188685,617.16,Hays Specialist Recruitment Ltd
